Workbook

Sheet Factory Input Fields
B1: Factory Labour Minute and Product Costing Calculator, Hoisery, Tamil Nadu, India
B2: Instructions and input fields, calculation and comparison of labour minute values
B3: https://api.fairwear.org/wp-content/uploads/2020/06/Guidance-for-Use-of-the-Fair-Wear-Labour-and-Minute-and-Product-Costing-Calculator-Final.pdf
B5: The yellow fields in the file are your input fields, where you should insert the actual information based on your factory
G8: Factory Name (optional)
G9: Responsible staff (optional)
B10: Step | C10: Value
B11: 1) | C11: 70.95 | D11: Insert actual INR-US$ foreign exchange rate or foreign exchange rate you are using for your calculations.
B12: workforce
B13: 2) | D13: Insert the total number of production workers in the factory.
B14: 3) | D14: Insert total number of sewing operators working actively in the prod. lines (i.e. # machines in the lines determine capacity minutes), which means: | H14: =IFERROR(C14/C13,0) -> 0 | I14: of the workforce.
D15: Distribution of workers per Pay Grade in % Please adjust the percentages to reflect the real situation regarding the distribuion of the workforce by grade level in your factory.
B16: Must add up to 100% | D16: Skilled | E16: Semi-skilled | F16: Unskilled
C17: =SUM(D17:J17) -> 1 | D17: 0.25 | E17: 0.5 | F17: 0.25
B18: paid leave
C19: 9 | D19: Total number of paid public holiday days per year when the factory is closed and workers are paid. As per law, workers are entitled to 9 festival days.
B20: 4) | C20: 15 | D20: Insert the average number of paid earned leave days taken annually per worker. This ranges from 12-15 days earned leave per year.
B21: 5) | D21: Insert the average number of paid casual leave days taken annually per worker.
C22: =SUM(C19:C21) -> 24 | D22: Total average number of paid leave days taken annually per worker.
B23: overtime
B24: 6) | D24: Insert the average weekly Overtime Hours of your factory.
B25: capacity minutes
C26: =(48+C24)*4.33*60-((C22/12)*8*60)-((C22/12)*(C24/6))*60 -> 11510.4 | D26: Total capacity minutes per worker/month, based on regular (48 h/w) and overtime hours (C20) and adjusted for the total average number of paid leave taken annually per worker (C18).
C27: =C14*C26 -> 0 | D27: Total number of monthly sewing minutes (number of sewing operators x (48 + weekly OT hours) x 4.33 x 60 MINUS average monthly number of minutes on days not worked (i.e. paid public leave).
B28: paid benefits
B29: 7) | D29: Insert the total amount paid by the factory in Gratuity in INR PER YEAR.
B30: 8) | C30: 0.083 | D30: Insert the ACTUAL percentage paid by the factory for the year-end bonus (Should not be below 8.3%).
B31: 9) | D31: Insert the total amount paid by the factory for Meals/Food in INR PER MONTH.
B32: 10) | D32: Insert the total amount paid by the factory for Dormitory/Housing in INR PER MONTH.
B33: 11) | D33: Total amount paid by the factory for Transportation in INR PER MONTH:
B34: 12) | D34: Insret the total amount paid by the factory in additional bonuses in INR PER MONTH:
B35: employer on-costs
B36: 13) | D36: Insert the total monthly amount paid for compensation in case of accidents in INR PER YEAR.
B37: 14) | D37: Insert the total amount in maternity benefits paid in INR PER YEAR (if not covered by ESI).
B38: 15) | D38: Insert the total amount in severence pay paid in INR PER YEAR.
B40: 16) | C40: 4956 | D40: Legal Minimum Wage 2019 (Unskilled level) for Hoisery in TN. To be updated annually when the minimum wages are adjusted.
B41: 17) | C41: 14670 | D41: Insert the Target Wage (Unskilled level). It is assumed here that semi-skilled and skilled workers would receive the same nominal increase as the unskilled workers. Wage differentation, however, would need to be discussed with worker representation and can be adjusted in the light-coloured cells on the LMV worksheet. Please note that that would remove the formula's.
B43: Wage | C43: Description | E43: Labour Cost avg. worker | F43: Capacity Minutes | G43: INR Labour Minute Value | H43: US$ Labour Minute Value | I43: Difference (absolute) | J43: Increment (in%)
B44: =C40 -> 4956 | C44: Labour Minute Value (based on Legal Minimum Wage) | E44: ='LMV Hoisery TN'!I38 -> 7383.740267 | F44: =C26 -> 11510.4 | G44: =E44/F44 -> 0.6414842461 | H44: ='LMV Hoisery TN'!I41 -> 0.009041356535
B45: =C41 -> 14670 | C45: Labour Minute Value (based on Target Wage) | E45: ='LMV Hoisery TN'!P38 -> 19629.20867 | F45: =F44 -> 11510.4 | G45: =E45/F45 -> 1.705345485 | H45: ='LMV Hoisery TN'!P41 -> 0.02403587716 | I45: =H45-H44 -> 0.01499452063 | J45: =IFERROR((H45-H44)/H44,0) -> 1.658437047
B47: Monthly Operational Expenses in the Factory
C48: in INR | D48: in USD | E48: per minute | F48: (operational expenses in USD divided by the total monthly sewing minutes (C15)
B49: 19) | D49: =C49/C11 -> 0 | E49: =IFERROR(D49/C27,0) -> 0 | F49: Insert the total amount paid for Direct Labour (i.e. sewing operators) per month in INR.
B50: 20) | D50: =C50/C11 -> 0 | E50: =IFERROR(D50/C27,0) -> 0 | F50: Insert the total amount paid for Indirect Labour (all other labour costs besides sewing, e.g. cutting, QC, maintainance, security, cleaning, office staff etc.) per month in INR.
C51: =SUM(C49:C50) -> 0 | D51: =D50+D49 -> 0 | E51: =IFERROR(D51/C27,0) -> 0 | F51: Total labour costs per month in INR / Labour Minute Costs (calculated by dividing with sewing capacity minutes: C12)
B52: 21) | D52: =C52/C11 -> 0 | E52: =IFERROR(D52/C27,0) -> 0 | F52: Insert the average overhead costs in the factory: rent, fuel, electricity, training, interest payments, depreciation on building, safety measures, etc. per month in INR.
B53: 22) | D53: =C53/C11 -> 0 | E53: =IFERROR(D53/C27,0) -> 0 | F53: If appliable, Insert the total additional costs per month for Covid-19 measures (e.g. face masks, desinfectants, temperature scanning, etc).
C54: =SUM(C51:C53) -> 0 | D54: =SUM(D51:D53) -> 0 | E54: =SUM(E51:E53) -> 0 | F54: Total factory expenses per month in INR / working minute costs (which can be compared with the working minute costs based on prevailing (2018) min. wage (Cell I-63) as a plausibility check).
C56: =IFERROR(C49/C51,0) -> 0 | D56: Total percentage paid for Direct Labour, i.e. sewing (based on step 19 above)
C57: =IFERROR(C50/C51,0) -> 0 | D57: Total percentage paid for Indirect Labour, i.e. all other labour costs besides sewing, e.g. cutting, QC, maintainance, security, cleaning, office staff etc. (based on step 20 above)
B59: Once you have inserted all above you should get following information:
B61: Wage grade | C61: Description | E61: Direct Labour (A) | F61: Indirect Labour (B) | G61: Factory Labour Minute Value (C) | H61: Overhead (D) | I61: Total Working Minute Cost (C+D) | J61: Increment (in%)
E62: =C56 -> 0 | F62: =C57 -> 0 | G62: A+B
B63: =B44 -> 4956 | C63: Factory Labour/Working Minute Value (based on Legal Minimum Wage) | E63: =H44 -> 0.009041356535 | F63: =IFERROR(G63*C57,0) -> 0 | G63: =IFERROR(E63/C56,0) -> 0 | H63: =E52+E53 -> 0 | I63: =SUM(G63:H63) -> 0
B64: =B45 -> 14670 | C64: Factory Labour/Working Minute Value (based on Target Wage) | E64: =H45 -> 0.02403587716 | F64: =IFERROR(G64*C57,0) -> 0 | G64: =IFERROR(E64/C56,0) -> 0 | H64: =E52+E53 -> 0 | I64: =SUM(G64:H64) -> 0 | J64: =IFERROR((I64-I63)/I63,0) -> 0

Sheet Product Style Costing
B1: Product Style Costing Calculator, Tailoring, Tamil Nadu, India
B2: Instructions and input fields, calculation and comparison of labour minute values
B3: https://api.fairwear.org/wp-content/uploads/2020/06/Guidance-for-Use-of-the-Fair-Wear-Labour-and-Minute-and-Product-Costing-Calculator-Final.pdf
B5: The yellow fields in the file are your input fields, where you should insert the actual information based on your factory
G8: Brand Name (optional)
G9: Factory Name (optional)
G10: Responsible staff (optional)
B12: From the Worksheet "Factory Input Fields', you should get following information:
B14: Wage grade | C14: Description | E14: Direct Labour (A) | F14: Indirect Labour (B) | G14: Factory Labour Minute Value (C) | H14: Overhead (D) | I14: Total Working Minute Cost (C+D) | J14: Increment (in%)
E15: ='Factory Input Fields'!E62 -> 0 | F15: ='Factory Input Fields'!F62 -> 0 | G15: A+B
B16: ='Factory Input Fields'!B63 -> 4956 | C16: Factory Labour/Working Minute Value (based on Legal Minimum Wage) | E16: ='Factory Input Fields'!E63 -> 0.009041356535 | F16: ='Factory Input Fields'!F63 -> 0 | G16: ='Factory Input Fields'!G63 -> 0 | H16: ='Factory Input Fields'!H63 -> 0 | I16: =SUM(G16:H16) -> 0
B17: ='Factory Input Fields'!B64 -> 14670 | C17: Factory Labour/Working Minute Value (based on Target Wage) | E17: ='Factory Input Fields'!E64 -> 0.02403587716 | F17: ='Factory Input Fields'!F64 -> 0 | G17: ='Factory Input Fields'!G64 -> 0 | H17: ='Factory Input Fields'!H64 -> 0 | I17: =SUM(G17:H17) -> 0 | J17: =IFERROR((I17-I16)/I16,0) -> 0
B19: Calculating the cost for a product style
C21: Items provided by the factory | E21: Details / Calculations | G21: Notes
B22: 1) | C22: Style Name | G22: Style name or number of the Product
B23: 2) | C23: Standard Allowed Minutes | G23: Standard Allowed Minutes (sewing) of the style you want to calculate per piece.
B24: 3) | C24: Efficiency Percentage | G24: Factory or line efficiency value. Note: One could also adjust this % to calculate the impact of Covid-19 on labour (and product) costs due to possible efficiency loss.
C25: Actual number of sewing minutes for style | E25: =IFERROR(E23/E24,0) -> 0 | G25: Note: if you don't know the SAM and efficiency percentage, simply indicate the actual labour minutes under 2, and 100% efficiency under 3.
B26: 4) | C26: Fabric | G26: Fabric costs per piece (incl. wastage %) in USD
B27: 5) | C27: Accessories | G27: Costs for accessories (buttons, zippers, etc) per piece in USD
B28: 6) | C28: Polybag, packaging, labelling | G28: Total amount per piece for polybag, packaging, hangtag
C29: Total Material Costs | E29: =SUM(E26:G28) -> 0
B30: Total CM Costs | C30: Labour Cost | E30: at LMW | F30: at Target Wage | G30: Factory labour minute value x SAM / efficiency %
C31: Direct | D31: ='Factory Input Fields'!$E$62 -> 0 | E31: =E25*'Factory Input Fields'!$E$63 -> 0 | F31: =E25*'Factory Input Fields'!$E$64 -> 0
C32: Indirect | D32: ='Factory Input Fields'!$F$62 -> 0 | E32: =E25*'Factory Input Fields'!$F$63 -> 0 | F32: =E25*'Factory Input Fields'!$F$64 -> 0
C33: Total labour cost | E33: =SUM(E31:E32) -> 0 | F33: =SUM(F31:F32) -> 0
C34: Overhead Cost (electricity, fuel ..) | E34: =IFERROR((E25)*'Factory Input Fields'!$H$63,0) -> 0 | G34: Overhead costs per minute (H16) x minutes spent on style (step 2-3).
B35: 7) | C35: Outsourced processes | G35: If applicable, amount for outsourced processes (e.g. embroidery, washing, printing) per piece in USD
B36: 8) | C36: Logistic costs (inbound-outbound) | G36: Freight cost to bring material to factory and finished goods to buyer (depending on INCOTERMS agreed) per piece in USD
B37: 9) | C37: Import tax and duties | G37: Cost for import tax and duties calculated per piece in USD
C38: Total | E38: =E29+E33+E35+E36+E34+E37 -> 0 | F38: =E29+F33+E35+E36+E34+E37 -> 0
B39: 10) | C39: Profit Margin | E39: =D39*E38 -> 0 | F39: =D39*F38 -> 0 | G39: Insert your profit margin.
B40: 11) | C40: Buying House Commission | E40: =D40*E38 -> 0 | F40: =D40*F38 -> 0 | G40: If applicable, insert the buying houses commission %
C41: FOB PRICE | E41: =SUM(E38:E40) -> 0 | F41: =SUM(F38:F40) -> 0
C42: % increase | F42: =IFERROR((F41-E41)/E41,0) -> 0
B44: 12) | D44: CHECK: insert the FOB price you receive from the buyer (in USD). | I44: Date:
B45: 13) | C45: 1000 | D45: Insert order size | E45: =C45*E41 -> 0 | F45: =C45*F41 -> 0 | G45: Order Value

Sheet LMV Hoisery TN
B2: Factory Labour Minute Calculator, Hoisery, Tamil Nadu, India
B5: Exchange rate INR - US$ (change to actual) | E5: Legal Minimum Wage (Unskilled) | G5: Note | L5: Target Wage (Unskilled) | N5: Note | T5: Average OT Hours per week | X5: Total number of workers
B6: ='Factory Input Fields'!C11 -> 70.95 | E6: ='Factory Input Fields'!C40 -> 4956 | G6: To be updated annually when the minimum wages are adjusted. | L6: ='Factory Input Fields'!C41 -> 14670 | N6: Appropriate wage differentation would need to be discussed with worker representation and could be adjusted in the light-coloured cells. | T6: ='Factory Input Fields'!C24 -> 0 | X6: ='Factory Input Fields'!C13 -> 0
B9: Wage Item | E9: Skilled "LMW" | G9: Semi-skilled "LMW" | I9: Unskilled "LMW" | L9: Skilled "LW" | N9: Semi-skilled "LW" | P9: Unskilled "LW" | S9: Explanatory Notes
E10: Regular working hours (48h) | F10: Overtime hours | G10: Regular working hours (48h) | H10: Overtime hours | I10: Regular working hours (48h) | J10: Overtime hours | L10: Regular working hours (48h) | M10: Overtime hours | N10: Regular working hours (48h) | O10: Overtime hours | P10: Regular working hours (48h) | Q10: Overtime hours
B11: 1. Legal Minimum Wage (Pay for time worked) | C11: Basic Wage | E11: 4248 | G11: 2448 | I11: =E6-I12 -> 1848 | L11: =E11+(P11-I11) -> 13962 | N11: =G11+(P11-I11) -> 12162 | P11: =L6-P12 -> 11562 | S11: 6 days a week, 8h/day; 48h/week x 4,33 = 208 h/month
C12: Dearness Allowance | E12: 3108 | G12: 3108 | I12: 3108 | L12: 3108 | N12: 3108 | P12: 3108 | S12: Dearness Allowance (to be adjusted annually).
C13: OT Wage | F13: =(E11+E12)/208*($T$6*4.33)*2 -> 0 | H13: =(G11+G12)/208*($T$6*4.33)*2 -> 0 | J13: =(I11+I12)/208*($T$6*4.33)*2 -> 0 | M13: =L14/208*($T$6*4.33)*2 -> 0 | O13: =N14/208*($T$6*4.33)*2 -> 0 | Q13: =P14/208*($T$6*4.33)*2 -> 0 | S13: Paid at 200%. Total OT per month is weekly OT hours x 4.33
C14: SubTOTAL 1 | E14: =SUM(E11:E13) -> 7356 | F14: =SUM(F11:F13) -> 0 | G14: =SUM(G11:G13) -> 5556 | H14: =SUM(H11:H13) -> 0 | I14: 4956 | J14: =SUM(J11:J13) -> 0 | L14: =SUM(L11:L13) -> 17070 | M14: =SUM(M11:M13) -> 0 | N14: 15270 | O14: =SUM(O11:O13) -> 0 | P14: 14670 | Q14: =SUM(Q11:Q13) -> 0
B15: 2. Directly Paid Benefits | C15: Gratuity | E15: =IFERROR(AB15/X6/12,0) -> 0 | G15: =IFERROR(AB15/X6/12,0) -> 0 | I15: =IFERROR(AB15/X6/12,0) -> 0 | L15: =IFERROR(AB15/X6/12,0) -> 0 | N15: =IFERROR(AB15/X6/12,0) -> 0 | P15: =IFERROR(AB15/X6/12,0) -> 0 | S15: Total amount paid by the factory in Gratuity in INR PER YEAR: | AB15: ='Factory Input Fields'!C29 -> 0
C16: Year end Bonus | E16: =($AB$16*(12*E14))/12 -> 610.548 | G16: =($AB$16*(12*G14))/12 -> 461.148 | I16: =($AB$16*(12*I14))/12 -> 411.348 | K16: =($AB$16*(12*K14))/12 -> 0 | L16: =($AB$16*(12*L14))/12 -> 1416.81 | N16: =($AB$16*(12*N14))/12 -> 1267.41 | P16: =($AB$16*(12*P14))/12 -> 1217.61 | S16: ACTUAL percentage paid by the factory for the year-end bonus (Should not be below 8.3%). | AB16: ='Factory Input Fields'!C30 -> 0.083
C17: Meal/Food | E17: =IFERROR($AB$17/$X$6,0) -> 0 | G17: =IFERROR($AB$17/$X$6,0) -> 0 | I17: =IFERROR($AB$17/$X$6,0) -> 0 | L17: =IFERROR($AB$17/$X$6,0) -> 0 | N17: =IFERROR($AB$17/$X$6,0) -> 0 | P17: =IFERROR($AB$17/$X$6,0) -> 0 | S17: Total amount paid by the factory for Meals/Food in INR PER MONTH: | AB17: ='Factory Input Fields'!C31 -> 0
C18: Dormitory/Housing | E18: =IFERROR($AB$18/$X$6,0) -> 0 | G18: =IFERROR($AB$18/$X$6,0) -> 0 | I18: =IFERROR($AB$18/$X$6,0) -> 0 | L18: =IFERROR($AB$18/$X$6,0) -> 0 | N18: =IFERROR($AB$18/$X$6,0) -> 0 | P18: =IFERROR($AB$18/$X$6,0) -> 0 | S18: Total amount paid by the factory for Dormitory/Housing in INR PER MONTH: | AB18: ='Factory Input Fields'!C32 -> 0
C19: Transportation | E19: =IFERROR($AB$19/$X$6,0) -> 0 | G19: =IFERROR($AB$19/$X$6,0) -> 0 | I19: =IFERROR($AB$19/$X$6,0) -> 0 | L19: =IFERROR($AB$19/$X$6,0) -> 0 | N19: =IFERROR($AB$19/$X$6,0) -> 0 | P19: =IFERROR($AB$19/$X$6,0) -> 0 | S19: Total amount paid by the factory for Transportation in INR PER MONTH: | AB19: ='Factory Input Fields'!C33 -> 0
C20: Any additional bonuses | E20: =IFERROR($AB$20/$X$6,0) -> 0 | G20: =IFERROR($AB$20/$X$6,0) -> 0 | I20: =IFERROR($AB$20/$X$6,0) -> 0 | L20: =IFERROR($AB$20/$X$6,0) -> 0 | N20: =IFERROR($AB$20/$X$6,0) -> 0 | P20: =IFERROR($AB$20/$X$6,0) -> 0 | S20: Total amount paid by the factory in additional bonuses in INR PER MONTH: | AB20: ='Factory Input Fields'!C34 -> 0
C21: SubTOTAL 2 | E21: =SUM(E15:E19) -> 610.548 | F21: 0 | G21: 461.148 | H21: 0 | I21: 411.348 | J21: 0 | K21: 0 | L21: 1416.81 | M21: 0 | N21: 1267.41 | O21: 0 | P21: 1217.61 | Q21: 0
B22: 3. Employer labour related on-cost | C22: Labour Wellfare Fund | E22: =20/12 -> 1.666666667 | G22: =20/12 -> 1.666666667 | I22: =20/12 -> 1.666666667 | L22: =20/12 -> 1.666666667 | N22: =20/12 -> 1.666666667 | P22: =20/12 -> 1.666666667 | S22: 20 Rupees per worker per year
C23: Compensation related to accidents | E23: =IFERROR(AB23/X6/12,0) -> 0 | G23: =IFERROR(AB23/X6/12,0) -> 0 | I23: =IFERROR(AB23/X6/12,0) -> 0 | L23: =IFERROR(AB23/X6/12,0) -> 0 | N23: =IFERROR(AB23/X6/12,0) -> 0 | P23: =IFERROR(AB23/X6/12,0) -> 0 | S23: Total monthly amount paid for compensation in case of accidents in INR PER YEAR: | AB23: ='Factory Input Fields'!C36 -> 0
C24: Maternity leave / benefit | E24: =IFERROR($AB$24/$X$6/12,0) -> 0 | G24: =IFERROR($AB$24/$X$6/12,0) -> 0 | I24: =IFERROR($AB$24/$X$6/12,0) -> 0 | L24: =IFERROR($AB$24/$X$6/12,0) -> 0 | N24: =IFERROR($AB$24/$X$6/12,0) -> 0 | P24: =IFERROR($AB$24/$X$6/12,0) -> 0 | S24: Total amount in maternity benefits paid in INR PER YEAR (if not covered by ESI): | AB24: ='Factory Input Fields'!C37 -> 0
C25: Severence Pay | E25: =IFERROR($AB$25/$X$6/12,0) -> 0 | G25: =IFERROR($AB$25/$X$6/12,0) -> 0 | I25: =IFERROR($AB$25/$X$6/12,0) -> 0 | L25: =IFERROR($AB$25/$X$6/12,0) -> 0 | N25: =IFERROR($AB$25/$X$6/12,0) -> 0 | P25: =IFERROR($AB$25/$X$6/12,0) -> 0 | S25: Total amount in severence pay paid in INR PER YEAR. | AB25: ='Factory Input Fields'!C38 -> 0
C26: Employees Provident Fund | E26: =0.1301*E14 -> 957.0156 | G26: =0.1301*G14 -> 722.8356 | I26: =0.1301*I14 -> 644.7756 | L26: =0.1301*L14 -> 2220.807 | N26: =0.1301*N14 -> 1986.627 | P26: =0.1301*P14 -> 1908.567 | S26: 12% + 1.01% admin charges of basic plus DA
C27: Employer State Insurance | E27: =0.0475*E14 -> 349.41 | F27: 0 | G27: 263.91 | H27: 0 | I27: 235.41 | J27: 0 | L27: =0.0475*L14 -> 810.825 | M27: 0 | N27: 725.325 | O27: 0 | P27: 696.825 | Q27: 0 | S27: 4.75% of basic plus DA (paid over regular + OT wages)
C28: SubTOTAL 3 | E28: =SUM(E22:E27) -> 1308.092267 | F28: 0 | G28: 988.4122667 | H28: 0 | I28: 881.8522667 | J28: 0 | L28: =SUM(L22:L27) -> 3033.298667 | M28: 0 | N28: 2713.618667 | O28: 0 | P28: 2607.058667 | Q28: 0
B29: TOTAL Labour cost per worker in INR (1+2+3) | E29: =E28+E21+E14 -> 9274.640267 | F29: 0 | G29: 7005.560267 | H29: 0 | I29: 6249.200267 | J29: 0 | L29: =L28+L21+L14 -> 21520.10867 | M29: 0 | N29: 19251.02867 | O29: 0 | P29: 18494.66867 | Q29: 0
B30: Monthly capacity minutes | E30: =48*4.33*60-('Factory Input Fields'!C22/12*8*60) -> 11510.4 | F30: =$T$6*4.33*60-('Factory Input Fields'!C22/12*'Factory Input Fields'!C24/6)*60 -> 0 | G30: =E30 -> 11510.4 | H30: =F30 -> 0 | I30: =E30 -> 11510.4 | J30: =F30 -> 0 | L30: =E30 -> 11510.4 | M30: =F30 -> 0 | N30: =E30 -> 11510.4 | O30: =F30 -> 0 | P30: =E30 -> 11510.4 | Q30: =F30 -> 0 | S30: 48 x 4.33 x 60min for regular working hours. Total OT per month is weekly OT hours x 4.33 x 60 minutes.
B31: Labour Minute Value INR (row 31/32) | E31: =E29/E30 -> 0.8057617691 | F31: =IFERROR(F29/F30,0) -> 0 | G31: =G29/G30 -> 0.6086287415 | H31: =IFERROR(H29/H30,0) -> 0 | I31: 0.5429177324 | J31: =IFERROR(J29/J30,0) -> 0 | L31: 1.869623008 | M31: =IFERROR(M29/M30,0) -> 0 | N31: 1.67248998 | O31: =IFERROR(O29/O30,0) -> 0 | P31: 1.606778971 | Q31: =IFERROR(Q29/Q30,0) -> 0
B32: Monthly Labour Cost incl. OT in INR (sum row 31) | E32: =E29+F29 -> 9274.640267 | G32: =G29+H29 -> 7005.560267 | I32: =I29+J29 -> 6249.200267 | L32: =L29+M29 -> 21520.10867 | N32: =N29+O29 -> 19251.02867 | P32: =P29+Q29 -> 18494.66867
B33: Monthly capacity minutes incl. OT (sum row 32) | E33: =E30+F30 -> 11510.4 | G33: =G30+H30 -> 11510.4 | I33: =I30+J30 -> 11510.4 | L33: =L30+M30 -> 11510.4 | N33: =N30+O30 -> 11510.4 | P33: =P30+Q30 -> 11510.4
B34: Labour minute Value INR incl. OT(row 19/20) | E34: =E32/E33 -> 0.8057617691 | G34: =G32/G33 -> 0.6086287415 | I34: =I32/I33 -> 0.5429177324 | L34: =L32/L33 -> 1.869623008 | N34: =N32/N33 -> 1.67248998 | P34: =P32/P33 -> 1.606778971
B35: Labour Minute Value US$ incl. OT | E35: =E34/$B$6 -> 0.01135675503 | G35: =G34/$B$6 -> 0.008578276836 | I35: =I34/$B$6 -> 0.00765211744 | L35: =L34/$B$6 -> 0.02635127565 | N35: =N34/$B$6 -> 0.02357279746 | P35: =P34/$B$6 -> 0.02264663807
B36: Distribution per Pay Grade in % | E36: ='Factory Input Fields'!D17 -> 0.25 | G36: ='Factory Input Fields'!E17 -> 0.5 | I36: ='Factory Input Fields'!F17 -> 0.25 | L36: ='Factory Input Fields'!D17 -> 0.25 | N36: ='Factory Input Fields'!E17 -> 0.5 | P36: ='Factory Input Fields'!F17 -> 0.25 | S36: =SUM(E36:J36) -> 1 | T36: % must add up to 100%
E38: Weighted Labour Cost p/worker (based on Legal Minimum Wage) | I38: =E32*E36+G32*G36+I32*I36 -> 7383.740267 | L38: Weighted Labour Cost p/worker (based on Target Wage) | P38: =L32*L36+N32*N36+P32*P36 -> 19629.20867
E39: Total Capacity Minutes | I39: =E33 -> 11510.4 | L39: Total Capacity Minutes | P39: =L33 -> 11510.4
E40: Weighted Labour Minute Value INR (based on Legal Minimum Wage) | I40: =I38/I39 -> 0.6414842461 | L40: Weighted Labour Minute Value INR (based on Target Wage) | P40: =P38/P39 -> 1.705345485
E41: Weighted Labour Minute Value US$ (based on Legal Minimum Wage) | I41: =I40/B6 -> 0.009041356535 | L41: Weighted Labour Minute Value US$ (based on Target Wage) | P41: =P40/B6 -> 0.02403587716
